[Event "Titled Tuesday Blitz March 14 Early 2023"]
[White "Sailer, Mike"]
[Black "Matveeva, Olga"]
[WhiteFideId "2012901"]
[BlackFideId "24107018"]
[WhiteElo "2109"]
[BlackElo "2056"]
[Result "0-1"]
[Round "05"]
[TimeControl "180+2"]
[Date "2023.03.14"]
[WhiteClock "0:00:01"]
[BlackClock "0:00:07"]

1. d4 {[%clk 0:03:00]}  d5 {[%clk 0:02:59]} 2. Bg5 {[%clk 0:02:59]}  Nf6 {[%clk 0:02:53]} 3. Bxf6 {[%clk 0:02:59]}  exf6 {[%clk 0:02:54]} 4. e3 {[%clk 0:03:00]}  Bd6 {[%clk 0:02:51]} 5. c4 {[%clk 0:03:00]}  dxc4 {[%clk 0:02:48]} 6. Bxc4 {[%clk 0:02:59]}  O-O {[%clk 0:02:48]} 7. Nf3 {[%clk 0:02:59]}  c6 {[%clk 0:02:45]} 8. O-O {[%clk 0:02:59]}  Be6 {[%clk 0:02:44]} 9. Qb3 {[%clk 0:02:55]}  Bxc4 {[%clk 0:02:42]} 10. Qxc4 {[%clk 0:02:54]}  Nd7 {[%clk 0:02:42]} 11. Nc3 {[%clk 0:02:50]}  Nb6 {[%clk 0:02:42]} 12. Qb3 {[%clk 0:02:43]}  Re8 {[%clk 0:02:41]} 13. a4 {[%clk 0:02:43]}  a5 {[%clk 0:02:34]} 14. e4 {[%clk 0:02:20]}  Bb4 {[%clk 0:02:32]} 15. Rfe1 {[%clk 0:02:16]}  Qd7 {[%clk 0:02:28]} 16. h3 {[%clk 0:02:11]}  Rad8 {[%clk 0:02:23]} 17. Rad1 {[%clk 0:02:11]}  g6 {[%clk 0:02:16]} 18. Re3 {[%clk 0:02:03]}  Kg7 {[%clk 0:02:15]} 19. Na2 {[%clk 0:02:00]}  Qe7 {[%clk 0:02:11]} 20. Nxb4 {[%clk 0:02:00]}  Qxb4 {[%clk 0:02:12]} 21. Qxb4 {[%clk 0:02:00]}  axb4 {[%clk 0:02:12]} 22. b3 {[%clk 0:02:01]}  Nc8 {[%clk 0:01:58]} 23. Ne1 {[%clk 0:01:55]}  Nd6 {[%clk 0:01:57]} 24. f3 {[%clk 0:01:54]}  f5 {[%clk 0:01:56]} 25. e5 {[%clk 0:01:51]}  f6 {[%clk 0:01:48]} 26. Nc2 {[%clk 0:01:44]}  fxe5 {[%clk 0:01:47]} 27. dxe5 {[%clk 0:01:44]}  Nf7 {[%clk 0:01:46]} 28. Rxd8 {[%clk 0:01:43]}  Rxd8 {[%clk 0:01:44]} 29. Nxb4 {[%clk 0:01:35]}  Rd4 {[%clk 0:01:32]} 30. Nd3 {[%clk 0:01:30]}  g5 {[%clk 0:01:22]} 31. e6 {[%clk 0:01:26]}  Nd6 {[%clk 0:01:19]} 32. Nc5 {[%clk 0:01:15]}  b6 {[%clk 0:01:07]} 33. Nd7 {[%clk 0:01:02]}  b5 {[%clk 0:00:59]} 34. a5 {[%clk 0:00:56]}  b4 {[%clk 0:00:53]} 35. a6 {[%clk 0:00:44]}  Rd1+ {[%clk 0:00:53]} 36. Kf2 {[%clk 0:00:35]}  Ra1 {[%clk 0:00:52]} 37. Nc5 {[%clk 0:00:34]}  Kf6 {[%clk 0:00:49]} 38. e7 {[%clk 0:00:24]}  Kf7 {[%clk 0:00:37]} 39. Re6 {[%clk 0:00:16]}  Ne8 {[%clk 0:00:28]} 40. Rxc6 {[%clk 0:00:16]}  Kxe7 {[%clk 0:00:27]} 41. Re6+ {[%clk 0:00:12]}  Kd8 {[%clk 0:00:23]} 42. Rb6 {[%clk 0:00:04]}  Nc7 {[%clk 0:00:21]} 43. Rb8+ {[%clk 0:00:03]}  Ke7 {[%clk 0:00:21]} 44. Rb7 {[%clk 0:00:03]}  Kd6 {[%clk 0:00:21]} 45. Rxc7 {[%clk 0:00:01]}  Kxc7 {[%clk 0:00:14]} 46. Nd3 {[%clk 0:00:01]}  Rxa6 {[%clk 0:00:12]} 47. Nxb4 {[%clk 0:00:02]}  Rd6 {[%clk 0:00:09]} 48. Nc2 {[%clk 0:00:01]}  f4 {[%clk 0:00:07]} 0-1


[Site "https://www.chess.com"]

[Event "Titled Tuesday Blitz March 14 Early 2023"]
[White "Baruch, Liam"]
[Black "Prudnykova, Olga"]
[WhiteFideId "14322064"]
[BlackFideId "14121093"]
[WhiteElo "2120"]
[BlackElo "2113"]
[Result "1-0"]
[Round "05"]
[TimeControl "180+2"]
[Date "2023.03.14"]
[WhiteClock "0:00:10"]
[BlackClock "0:00:04"]

1. e4 {[%clk 0:03:00]}  c5 {[%clk 0:02:58]} 2. Nf3 {[%clk 0:03:01]}  Nf6 {[%clk 0:02:58]} 3. e5 {[%clk 0:02:56]}  Nd5 {[%clk 0:02:58]} 4. d4 {[%clk 0:02:54]}  cxd4 {[%clk 0:02:57]} 5. Nxd4 {[%clk 0:02:55]}  g6 {[%clk 0:02:52]} 6. Bc4 {[%clk 0:02:52]}  Nc7 {[%clk 0:02:49]} 7. Qf3 {[%clk 0:02:40]}  Ne6 {[%clk 0:02:48]} 8. Nxe6 {[%clk 0:02:29]}  dxe6 {[%clk 0:02:47]} 9. Bb5+ {[%clk 0:02:29]}  Nd7 {[%clk 0:02:44]} 10. Nc3 {[%clk 0:02:26]}  Bg7 {[%clk 0:02:43]} 11. Bf4 {[%clk 0:02:23]}  O-O {[%clk 0:02:43]} 12. O-O-O {[%clk 0:02:23]}  Qc7 {[%clk 0:02:43]} 13. Rhe1 {[%clk 0:02:17]}  a6 {[%clk 0:02:41]} 14. Bxd7 {[%clk 0:02:01]}  Bxd7 {[%clk 0:02:40]} 15. Qg3 {[%clk 0:01:52]}  Rac8 {[%clk 0:02:38]} 16. Bg5 {[%clk 0:01:51]}  Bc6 {[%clk 0:02:29]} 17. h4 {[%clk 0:01:45]}  b5 {[%clk 0:02:28]} 18. a3 {[%clk 0:01:42]}  a5 {[%clk 0:02:27]} 19. Rd2 {[%clk 0:01:16]}  b4 {[%clk 0:02:25]} 20. Nb1 {[%clk 0:01:12]}  Bd5 {[%clk 0:02:22]} 21. h5 {[%clk 0:01:06]}  h6 {[%clk 0:01:44]} 22. Bf4 {[%clk 0:00:41]}  g5 {[%clk 0:01:43]} 23. Bxg5 {[%clk 0:00:40]}  hxg5 {[%clk 0:01:42]} 24. Qxg5 {[%clk 0:00:41]}  Kh7 {[%clk 0:01:39]} 25. h6 {[%clk 0:00:40]}  Bh8 {[%clk 0:01:37]} 26. Qh5 {[%clk 0:00:28]}  f5 {[%clk 0:01:14]} 27. f4 {[%clk 0:00:23]}  b3 {[%clk 0:00:52]} 28. c3 {[%clk 0:00:21]}  Qc6 {[%clk 0:00:52]} 29. g4 {[%clk 0:00:18]}  Qe8 {[%clk 0:00:51]} 30. Qxe8 {[%clk 0:00:18]}  Rcxe8 {[%clk 0:00:48]} 31. g5 {[%clk 0:00:18]}  Rc8 {[%clk 0:00:45]} 32. Rf2 {[%clk 0:00:17]}  Kg6 {[%clk 0:00:45]} 33. Nd2 {[%clk 0:00:18]}  a4 {[%clk 0:00:43]} 34. Nf3 {[%clk 0:00:18]}  Bxf3 {[%clk 0:00:41]} 35. Rxf3 {[%clk 0:00:19]}  Rc4 {[%clk 0:00:42]} 36. Rd1 {[%clk 0:00:18]}  Rfc8 {[%clk 0:00:41]} 37. Rd7 {[%clk 0:00:18]}  R4c7 {[%clk 0:00:41]} 38. Rd4 {[%clk 0:00:18]}  Rc4 {[%clk 0:00:39]} 39. Rd7 {[%clk 0:00:18]}  R8c7 {[%clk 0:00:20]} 40. Rd8 {[%clk 0:00:18]}  Kh7 {[%clk 0:00:19]} 41. g6+ {[%clk 0:00:17]}  Kxg6 {[%clk 0:00:17]} 42. Rxh8 {[%clk 0:00:18]}  Re4 {[%clk 0:00:16]} 43. Rg3+ {[%clk 0:00:18]}  Kh5 {[%clk 0:00:16]} 44. h7 {[%clk 0:00:16]}  Rd7 {[%clk 0:00:16]} 45. Rg1 {[%clk 0:00:13]}  Re2 {[%clk 0:00:13]} 46. Rhg8 {[%clk 0:00:10]}  Rc2+ {[%clk 0:00:04]} 47. Kb1 {[%clk 0:00:10]} 1-0


[Site "https://www.chess.com"]

[Event "Titled Tuesday Blitz March 14 Early 2023"]
[White "Zhurova, Anna"]
[Black "Smith, Garrett L"]
[WhiteFideId "54113075"]
[BlackFideId "2024829"]
[WhiteElo "2031"]
[BlackElo "2258"]
[Result "0-1"]
[Round "05"]
[TimeControl "180+2"]
[Date "2023.03.14"]
[WhiteClock "0:00:11"]
[BlackClock "0:00:25"]

1. e4 {[%clk 0:03:00]}  c5 {[%clk 0:02:59]} 2. Nf3 {[%clk 0:03:00]}  Nc6 {[%clk 0:02:59]} 3. d4 {[%clk 0:02:59]}  cxd4 {[%clk 0:03:00]} 4. Nxd4 {[%clk 0:02:59]}  e5 {[%clk 0:03:00]} 5. Nb5 {[%clk 0:02:58]}  d6 {[%clk 0:03:00]} 6. c4 {[%clk 0:02:48]}  Be7 {[%clk 0:02:59]} 7. N1c3 {[%clk 0:02:46]}  a6 {[%clk 0:02:59]} 8. Na3 {[%clk 0:02:46]}  f5 {[%clk 0:03:00]} 9. Bd3 {[%clk 0:02:38]}  f4 {[%clk 0:03:00]} 10. Nd5 {[%clk 0:02:33]}  Nf6 {[%clk 0:02:57]} 11. g3 {[%clk 0:02:28]}  O-O {[%clk 0:02:39]} 12. gxf4 {[%clk 0:02:27]}  exf4 {[%clk 0:02:37]} 13. Bd2 {[%clk 0:02:12]}  Ne5 {[%clk 0:02:12]} 14. Nxf6+ {[%clk 0:01:38]}  Rxf6 {[%clk 0:02:02]} 15. Be2 {[%clk 0:01:34]}  Bh3 {[%clk 0:01:57]} 16. Bc3 {[%clk 0:01:31]}  Bg2 {[%clk 0:01:54]} 17. Rg1 {[%clk 0:01:31]}  Bxe4 {[%clk 0:01:51]} 18. Qd2 {[%clk 0:01:23]}  Bg6 {[%clk 0:01:37]} 19. O-O-O {[%clk 0:01:19]}  f3 {[%clk 0:01:29]} 20. Bf1 {[%clk 0:01:19]}  Qc7 {[%clk 0:01:24]} 21. h4 {[%clk 0:01:04]}  Rc8 {[%clk 0:01:21]} 22. Qd4 {[%clk 0:00:28]}  Qc5 {[%clk 0:01:11]} 23. Qd2 {[%clk 0:00:23]}  Bf7 {[%clk 0:00:57]} 24. Bd4 {[%clk 0:00:20]}  Qc7 {[%clk 0:00:53]} 25. Kb1 {[%clk 0:00:20]}  Rg6 {[%clk 0:00:49]} 26. Rxg6 {[%clk 0:00:19]}  Bxg6+ {[%clk 0:00:49]} 27. Ka1 {[%clk 0:00:19]}  Bxh4 {[%clk 0:00:48]} 28. c5 {[%clk 0:00:18]}  Bf6 {[%clk 0:00:46]} 29. cxd6 {[%clk 0:00:17]}  Qxd6 {[%clk 0:00:45]} 30. Bc3 {[%clk 0:00:13]}  Qxd2 {[%clk 0:00:44]} 31. Rxd2 {[%clk 0:00:14]}  h5 {[%clk 0:00:43]} 32. Nc2 {[%clk 0:00:13]}  Nc4 {[%clk 0:00:41]} 33. Bxc4+ {[%clk 0:00:13]}  Rxc4 {[%clk 0:00:42]} 34. Ne3 {[%clk 0:00:13]}  Re4 {[%clk 0:00:40]} 35. Bxf6 {[%clk 0:00:13]}  gxf6 {[%clk 0:00:40]} 36. a3 {[%clk 0:00:13]}  h4 {[%clk 0:00:41]} 37. Rd1 {[%clk 0:00:12]}  h3 {[%clk 0:00:40]} 38. Rh1 {[%clk 0:00:13]}  Rh4 {[%clk 0:00:40]} 39. Rh2 {[%clk 0:00:14]}  Kf7 {[%clk 0:00:39]} 40. Ka2 {[%clk 0:00:14]}  Ke6 {[%clk 0:00:39]} 41. Kb3 {[%clk 0:00:14]}  Ke5 {[%clk 0:00:39]} 42. Kc3 {[%clk 0:00:15]}  Rh8 {[%clk 0:00:37]} 43. Nc4+ {[%clk 0:00:15]}  Kf4 {[%clk 0:00:37]} 44. Ne3 {[%clk 0:00:16]}  Bf5 {[%clk 0:00:35]} 45. Nd5+ {[%clk 0:00:15]}  Kg4 {[%clk 0:00:35]} 46. Nxf6+ {[%clk 0:00:15]}  Kf4 {[%clk 0:00:35]} 47. Nd5+ {[%clk 0:00:15]}  Ke5 {[%clk 0:00:35]} 48. Ne3 {[%clk 0:00:16]}  Be6 {[%clk 0:00:35]} 49. Kb4 {[%clk 0:00:16]}  Rc8 {[%clk 0:00:35]} 50. Ka5 {[%clk 0:00:14]}  Rc1 {[%clk 0:00:35]} 51. Kb6 {[%clk 0:00:13]}  Rb1 {[%clk 0:00:34]} 52. b4 {[%clk 0:00:13]}  Rb3 {[%clk 0:00:32]} 53. Kxb7 {[%clk 0:00:13]}  Rxa3 {[%clk 0:00:33]} 54. Kb6 {[%clk 0:00:14]}  Rb3 {[%clk 0:00:33]} 55. Ka5 {[%clk 0:00:14]}  Rb1 {[%clk 0:00:33]} 56. Nc2 {[%clk 0:00:11]}  Rg1 {[%clk 0:00:31]} 57. Ne3 {[%clk 0:00:11]}  Rg2 {[%clk 0:00:29]} 58. Rh1 {[%clk 0:00:11]}  Rxf2 {[%clk 0:00:29]} 59. Kxa6 {[%clk 0:00:11]}  Re2 {[%clk 0:00:28]} 60. Nf1 {[%clk 0:00:11]}  f2 {[%clk 0:00:27]} 61. Rh2 {[%clk 0:00:10]}  Bc4+ {[%clk 0:00:26]} 62. Ka5 {[%clk 0:00:10]}  Ra2+ {[%clk 0:00:25]} 63. Kb6 {[%clk 0:00:10]}  Bxf1 {[%clk 0:00:26]} 64. Rxf2 {[%clk 0:00:11]}  Rxf2 {[%clk 0:00:25]} 0-1


[Site "https://www.chess.com"]

[Event "Titled Tuesday Blitz March 14 Early 2023"]
[White "Erigaisi Arjun"]
[Black "Wei, Yi"]
[WhiteFideId "35009192"]
[BlackFideId "8603405"]
[WhiteElo "2737"]
[BlackElo "2686"]
[Result "0-1"]
[Round "06"]
[TimeControl "180+2"]
[Date "2023.03.14"]
[WhiteClock "0:00:03"]
[BlackClock "0:00:04"]

1. c4 {[%clk 0:03:00]}  e5 {[%clk 0:02:58]} 2. d3 {[%clk 0:03:00]}  Nf6 {[%clk 0:02:58]} 3. Nf3 {[%clk 0:03:00]}  Nc6 {[%clk 0:02:58]} 4. a3 {[%clk 0:03:00]}  d5 {[%clk 0:02:58]} 5. cxd5 {[%clk 0:03:01]}  Nxd5 {[%clk 0:02:59]} 6. e4 {[%clk 0:03:00]}  Nb6 {[%clk 0:02:59]} 7. Be3 {[%clk 0:03:00]}  Be7 {[%clk 0:02:58]} 8. Be2 {[%clk 0:02:59]}  O-O {[%clk 0:02:57]} 9. O-O {[%clk 0:03:00]}  Be6 {[%clk 0:02:55]} 10. Nbd2 {[%clk 0:02:57]}  a5 {[%clk 0:02:55]} 11. Rc1 {[%clk 0:02:57]}  Qd7 {[%clk 0:02:49]} 12. Nb3 {[%clk 0:02:44]}  a4 {[%clk 0:02:49]} 13. Nc5 {[%clk 0:02:44]}  Bxc5 {[%clk 0:02:49]} 14. Rxc5 {[%clk 0:02:45]}  Bb3 {[%clk 0:02:24]} 15. Qd2 {[%clk 0:02:31]}  Rfe8 {[%clk 0:02:17]} 16. Rfc1 {[%clk 0:02:27]}  f6 {[%clk 0:02:11]} 17. h3 {[%clk 0:02:12]}  Re7 {[%clk 0:02:06]} 18. Qc3 {[%clk 0:02:00]}  Rd8 {[%clk 0:01:56]} 19. Bf1 {[%clk 0:01:45]}  Bf7 {[%clk 0:01:41]} 20. Bd2 {[%clk 0:01:14]}  Nc8 {[%clk 0:01:28]} 21. Be3 {[%clk 0:01:08]}  N8a7 {[%clk 0:01:22]} 22. Qe1 {[%clk 0:00:55]}  b6 {[%clk 0:01:10]} 23. R5c3 {[%clk 0:00:53]}  Qd6 {[%clk 0:00:52]} 24. Qd1 {[%clk 0:00:39]}  Bb3 {[%clk 0:00:38]} 25. Rxb3 {[%clk 0:00:39]}  axb3 {[%clk 0:00:39]} 26. Qxb3+ {[%clk 0:00:40]}  Kh8 {[%clk 0:00:36]} 27. h4 {[%clk 0:00:31]}  Na5 {[%clk 0:00:31]} 28. Qa2 {[%clk 0:00:27]}  c5 {[%clk 0:00:29]} 29. b4 {[%clk 0:00:26]}  Nb7 {[%clk 0:00:20]} 30. h5 {[%clk 0:00:25]}  Nc6 {[%clk 0:00:16]} 31. bxc5 {[%clk 0:00:26]}  Nxc5 {[%clk 0:00:16]} 32. Nh4 {[%clk 0:00:21]}  Nd4 {[%clk 0:00:14]} 33. Bxd4 {[%clk 0:00:20]}  exd4 {[%clk 0:00:15]} 34. g3 {[%clk 0:00:14]}  Qe6 {[%clk 0:00:14]} 35. Qe2 {[%clk 0:00:13]}  Qe5 {[%clk 0:00:10]} 36. f4 {[%clk 0:00:10]}  Qe6 {[%clk 0:00:09]} 37. Qh2 {[%clk 0:00:07]}  Kg8 {[%clk 0:00:08]} 38. Nf5 {[%clk 0:00:05]}  Ra7 {[%clk 0:00:06]} 39. Qh4 {[%clk 0:00:04]}  Kf8 {[%clk 0:00:06]} 40. Qg4 {[%clk 0:00:04]}  Qb3 {[%clk 0:00:06]} 41. h6 {[%clk 0:00:03]}  g6 {[%clk 0:00:05]} 42. Ng7 {[%clk 0:00:03]}  Qf7 {[%clk 0:00:05]} 43. e5 {[%clk 0:00:03]}  f5 {[%clk 0:00:05]} 44. Qe2 {[%clk 0:00:03]}  Qe7 {[%clk 0:00:04]} 45. Qb2 {[%clk 0:00:03]}  Rb7 {[%clk 0:00:03]} 46. Qa2 {[%clk 0:00:03]}  Qf7 {[%clk 0:00:03]} 47. Qb1 {[%clk 0:00:03]}  Qb3 {[%clk 0:00:03]} 48. Qa1 {[%clk 0:00:03]}  Ke7 {[%clk 0:00:01]} 49. Rb1 {[%clk 0:00:03]}  Qc3 {[%clk 0:00:02]} 50. Qa2 {[%clk 0:00:04]}  Kd7 {[%clk 0:00:02]} 51. Qf7+ {[%clk 0:00:03]}  Kc8 {[%clk 0:00:01]} 52. Qf6 {[%clk 0:00:03]}  Rdd7 {[%clk 0:00:01]} 53. Qc6+ {[%clk 0:00:03]}  Kb8 {[%clk 0:00:01]} 54. Bg2 {[%clk 0:00:04]}  Rdc7 {[%clk 0:00:01]} 55. Qe8+ {[%clk 0:00:03]}  Rc8 {[%clk 0:00:01]} 56. Qb5 {[%clk 0:00:04]}  Qxd3 {[%clk 0:00:02]} 57. Qxd3 {[%clk 0:00:03]}  Nxd3 {[%clk 0:00:02]} 58. Bxb7 {[%clk 0:00:04]}  Kxb7 {[%clk 0:00:03]} 59. e6 {[%clk 0:00:05]}  Rc7 {[%clk 0:00:02]} 60. Rd1 {[%clk 0:00:05]}  Nc5 {[%clk 0:00:02]} 61. Rxd4 {[%clk 0:00:06]}  Re7 {[%clk 0:00:03]} 62. Rd5 {[%clk 0:00:03]}  Kc7 {[%clk 0:00:03]} 63. g4 {[%clk 0:00:03]}  fxg4 {[%clk 0:00:03]} 64. Kf2 {[%clk 0:00:02]}  Ne4+ {[%clk 0:00:03]} 65. Kg2 {[%clk 0:00:01]}  Nc5 {[%clk 0:00:03]} 66. Kg3 {[%clk 0:00:01]}  Nxe6 {[%clk 0:00:03]} 67. Re5 {[%clk 0:00:01]}  Kd6 {[%clk 0:00:03]} 68. Rxe6+ {[%clk 0:00:01]}  Rxe6 {[%clk 0:00:03]} 69. Nxe6 {[%clk 0:00:02]}  Kxe6 {[%clk 0:00:04]} 70. Kxg4 {[%clk 0:00:02]}  Kf6 {[%clk 0:00:03]} 71. a4 {[%clk 0:00:03]}  Kf7 {[%clk 0:00:02]} 72. f5 {[%clk 0:00:03]}  Kf6 {[%clk 0:00:02]} 73. fxg6 {[%clk 0:00:02]}  Kxg6 {[%clk 0:00:02]} 74. Kf4 {[%clk 0:00:02]}  Kxh6 {[%clk 0:00:03]} 75. Kg4 {[%clk 0:00:02]}  Kg6 {[%clk 0:00:03]} 76. Kf4 {[%clk 0:00:03]}  Kf6 {[%clk 0:00:03]} 77. Ke4 {[%clk 0:00:02]}  Ke6 {[%clk 0:00:03]} 78. Kd4 {[%clk 0:00:03]}  Kd6 {[%clk 0:00:04]} 79. Kc4 {[%clk 0:00:03]}  Kc6 {[%clk 0:00:04]} 0-1


[Site "https://www.chess.com"]

[Event "Titled Tuesday Blitz March 14 Early 2023"]
[White "Bachmann, Axel"]
[Black "Caruana, Fabiano"]
[WhiteFideId "3700488"]
[BlackFideId "2020009"]
[WhiteElo "2605"]
[BlackElo "2818"]
[Result "0-1"]
[Round "06"]
[TimeControl "180+2"]
[Date "2023.03.14"]
[WhiteClock "0:00:02"]
[BlackClock "0:00:12"]

1. Nf3 {[%clk 0:02:59]}  d5 {[%clk 0:02:59]} 2. e3 {[%clk 0:02:59]}  Nf6 {[%clk 0:02:56]} 3. c4 {[%clk 0:02:59]}  e6 {[%clk 0:02:55]} 4. Nc3 {[%clk 0:02:57]}  b6 {[%clk 0:02:54]} 5. b3 {[%clk 0:02:56]}  Bd6 {[%clk 0:02:54]} 6. cxd5 {[%clk 0:02:54]}  exd5 {[%clk 0:02:53]} 7. Bb2 {[%clk 0:02:55]}  O-O {[%clk 0:02:53]} 8. Rc1 {[%clk 0:02:55]}  a6 {[%clk 0:02:51]} 9. g3 {[%clk 0:02:52]}  Re8 {[%clk 0:02:49]} 10. Bg2 {[%clk 0:02:52]}  Nbd7 {[%clk 0:02:37]} 11. O-O {[%clk 0:02:52]}  Nc5 {[%clk 0:02:37]} 12. Qc2 {[%clk 0:02:39]}  Bb7 {[%clk 0:02:33]} 13. Ne2 {[%clk 0:02:35]}  Ne6 {[%clk 0:02:25]} 14. Ned4 {[%clk 0:02:33]}  Nxd4 {[%clk 0:02:23]} 15. Nxd4 {[%clk 0:02:31]}  c5 {[%clk 0:02:22]} 16. Nf5 {[%clk 0:02:31]}  Bf8 {[%clk 0:02:21]} 17. d4 {[%clk 0:02:31]}  Ne4 {[%clk 0:02:07]} 18. dxc5 {[%clk 0:02:27]}  bxc5 {[%clk 0:02:08]} 19. Rfd1 {[%clk 0:02:24]}  Qg5 {[%clk 0:02:03]} 20. Nh4 {[%clk 0:02:17]}  Rad8 {[%clk 0:02:03]} 21. Nf3 {[%clk 0:02:06]}  Qh5 {[%clk 0:02:00]} 22. Nd2 {[%clk 0:01:52]}  Nxf2 {[%clk 0:01:32]} 23. Kxf2 {[%clk 0:01:50]}  d4 {[%clk 0:01:33]} 24. e4 {[%clk 0:01:24]}  Be7 {[%clk 0:00:54]} 25. Nf3 {[%clk 0:00:23]}  Rc8 {[%clk 0:00:32]} 26. Re1 {[%clk 0:00:22]}  Red8 {[%clk 0:00:28]} 27. Qd2 {[%clk 0:00:22]}  c4 {[%clk 0:00:22]} 28. Rxc4 {[%clk 0:00:19]}  Rxc4 {[%clk 0:00:22]} 29. bxc4 {[%clk 0:00:19]}  a5 {[%clk 0:00:20]} 30. a3 {[%clk 0:00:17]}  Ba6 {[%clk 0:00:19]} 31. Kg1 {[%clk 0:00:14]}  Bxc4 {[%clk 0:00:19]} 32. Rc1 {[%clk 0:00:09]}  Be6 {[%clk 0:00:16]} 33. Nxd4 {[%clk 0:00:10]}  Bg5 {[%clk 0:00:15]} 34. Qf2 {[%clk 0:00:02]}  Bxc1 {[%clk 0:00:15]} 35. Bf3 {[%clk 0:00:02]}  Qh6 {[%clk 0:00:11]} 36. Nxe6 {[%clk 0:00:03]}  Be3 {[%clk 0:00:11]} 37. Nxd8 {[%clk 0:00:02]}  Bxf2+ {[%clk 0:00:12]} 0-1


[Site "https://www.chess.com"]

[Event "Titled Tuesday Blitz March 14 Early 2023"]
[White "Dubov, Daniil"]
[Black "Ozen, Bahadir"]
[WhiteFideId "24126055"]
[BlackFideId "6337058"]
[WhiteElo "2802"]
[BlackElo "2503"]
[Result "1-0"]
[Round "06"]
[TimeControl "180+2"]
[Date "2023.03.14"]
[WhiteClock "0:00:09"]
[BlackClock "0:00:06"]

1. d4 {[%clk 0:03:00]}  d5 {[%clk 0:03:00]} 2. c4 {[%clk 0:03:00]}  c6 {[%clk 0:03:00]} 3. Nf3 {[%clk 0:03:00]}  Nf6 {[%clk 0:03:00]} 4. Nc3 {[%clk 0:03:00]}  e6 {[%clk 0:03:00]} 5. g3 {[%clk 0:02:58]}  dxc4 {[%clk 0:02:57]} 6. Bg2 {[%clk 0:02:58]}  Nbd7 {[%clk 0:02:57]} 7. O-O {[%clk 0:02:57]}  b5 {[%clk 0:02:58]} 8. e4 {[%clk 0:02:58]}  Bb7 {[%clk 0:02:38]} 9. e5 {[%clk 0:02:56]}  Nd5 {[%clk 0:02:38]} 10. Ng5 {[%clk 0:02:57]}  h6 {[%clk 0:02:38]} 11. Qh5 {[%clk 0:02:51]}  g6 {[%clk 0:02:25]} 12. Qh3 {[%clk 0:02:46]}  Bg7 {[%clk 0:01:38]} 13. Nge4 {[%clk 0:02:38]}  Bf8 {[%clk 0:01:38]} 14. Bg5 {[%clk 0:02:31]}  Qc7 {[%clk 0:01:29]} 15. Rac1 {[%clk 0:02:27]}  Rg8 {[%clk 0:01:19]} 16. Bd2 {[%clk 0:02:12]}  O-O-O {[%clk 0:01:17]} 17. b3 {[%clk 0:02:12]}  Ba3 {[%clk 0:00:58]} 18. bxc4 {[%clk 0:02:10]}  bxc4 {[%clk 0:00:58]} 19. Rb1 {[%clk 0:02:03]}  N7b6 {[%clk 0:00:57]} 20. Qxh6 {[%clk 0:01:57]}  Rh8 {[%clk 0:00:53]} 21. Qg5 {[%clk 0:01:57]}  Ba6 {[%clk 0:00:54]} 22. h4 {[%clk 0:01:42]}  Rh5 {[%clk 0:00:41]} 23. Qg4 {[%clk 0:01:42]}  Ne7 {[%clk 0:00:36]} 24. Bc1 {[%clk 0:01:34]}  Bxc1 {[%clk 0:00:35]} 25. Nd6+ {[%clk 0:01:34]}  Rxd6 {[%clk 0:00:29]} 26. exd6 {[%clk 0:01:35]}  Qxd6 {[%clk 0:00:30]} 27. Rfxc1 {[%clk 0:01:34]}  f5 {[%clk 0:00:29]} 28. Qe2 {[%clk 0:01:31]}  Rh8 {[%clk 0:00:26]} 29. Re1 {[%clk 0:01:20]}  Kd7 {[%clk 0:00:26]} 30. Qd2 {[%clk 0:01:07]}  Ned5 {[%clk 0:00:23]} 31. Re5 {[%clk 0:01:04]}  Rd8 {[%clk 0:00:19]} 32. Rbe1 {[%clk 0:01:02]}  Re8 {[%clk 0:00:20]} 33. Bxd5 {[%clk 0:00:51]}  Nxd5 {[%clk 0:00:19]} 34. Na4 {[%clk 0:00:47]}  Bc8 {[%clk 0:00:20]} 35. Nc5+ {[%clk 0:00:46]}  Kd8 {[%clk 0:00:20]} 36. Qa5+ {[%clk 0:00:41]}  Qc7 {[%clk 0:00:20]} 37. Qa3 {[%clk 0:00:33]}  c3 {[%clk 0:00:19]} 38. Rc1 {[%clk 0:00:32]}  Qb6 {[%clk 0:00:19]} 39. Qb3 {[%clk 0:00:20]}  Kc7 {[%clk 0:00:17]} 40. Kg2 {[%clk 0:00:14]}  Kd6 {[%clk 0:00:17]} 41. Rxc3 {[%clk 0:00:14]}  Nxc3 {[%clk 0:00:16]} 42. Qxc3 {[%clk 0:00:15]}  Kc7 {[%clk 0:00:15]} 43. Qe3 {[%clk 0:00:14]}  Kb8 {[%clk 0:00:14]} 44. a4 {[%clk 0:00:14]}  Qb2 {[%clk 0:00:12]} 45. Qf4 {[%clk 0:00:12]}  Ka8 {[%clk 0:00:12]} 46. Re3 {[%clk 0:00:12]}  Qb8 {[%clk 0:00:10]} 47. Re5 {[%clk 0:00:09]}  Qd6 {[%clk 0:00:10]} 48. Qe3 {[%clk 0:00:08]}  Re7 {[%clk 0:00:08]} 49. Nd3 {[%clk 0:00:08]}  Re8 {[%clk 0:00:08]} 50. Nf4 {[%clk 0:00:09]}  Rd8 {[%clk 0:00:09]} 51. Nxg6 {[%clk 0:00:09]}  Qxd4 {[%clk 0:00:09]} 52. Qxd4 {[%clk 0:00:09]}  Rxd4 {[%clk 0:00:10]} 53. h5 {[%clk 0:00:10]}  Rd7 {[%clk 0:00:10]} 54. Rxe6 {[%clk 0:00:10]}  Rh7 {[%clk 0:00:06]} 55. Re8 {[%clk 0:00:09]}  Kb8 {[%clk 0:00:06]} 56. Ne7 {[%clk 0:00:09]}  Kc7 {[%clk 0:00:06]} 57. Rxc8+ {[%clk 0:00:09]}  Kd7 {[%clk 0:00:06]} 58. Ra8 {[%clk 0:00:09]} 1-0


[Site "https://www.chess.com"]

[Event "Titled Tuesday Blitz March 14 Early 2023"]
[White "Madaminov, Mukhiddin"]
[Black "Lazavik, Denis"]
[WhiteFideId "14210703"]
[BlackFideId "13515110"]
[WhiteElo "2511"]
[BlackElo "2560"]
[Result "0-1"]
[Round "06"]
[TimeControl "180+2"]
[Date "2023.03.14"]
[WhiteClock "0:00:01"]
[BlackClock "0:00:14"]

1. d4 {[%clk 0:03:00]}  Nf6 {[%clk 0:02:59]} 2. Nc3 {[%clk 0:03:01]}  d5 {[%clk 0:02:59]} 3. Bf4 {[%clk 0:03:01]}  a6 {[%clk 0:02:54]} 4. e3 {[%clk 0:03:02]}  e6 {[%clk 0:02:55]} 5. g4 {[%clk 0:03:02]}  Bb4 {[%clk 0:02:54]} 6. Bg2 {[%clk 0:03:02]}  c5 {[%clk 0:02:48]} 7. g5 {[%clk 0:02:59]}  Nfd7 {[%clk 0:02:48]} 8. Ne2 {[%clk 0:02:58]}  Nc6 {[%clk 0:02:45]} 9. O-O {[%clk 0:02:39]}  cxd4 {[%clk 0:02:36]} 10. Nxd4 {[%clk 0:02:22]}  Be7 {[%clk 0:02:29]} 11. h4 {[%clk 0:02:16]}  Nb6 {[%clk 0:02:17]} 12. e4 {[%clk 0:02:08]}  O-O {[%clk 0:02:07]} 13. exd5 {[%clk 0:02:06]}  exd5 {[%clk 0:02:06]} 14. Re1 {[%clk 0:01:53]}  Bd6 {[%clk 0:02:02]} 15. Bxd6 {[%clk 0:01:33]}  Qxd6 {[%clk 0:02:02]} 16. b3 {[%clk 0:01:34]}  Ne5 {[%clk 0:01:56]} 17. Qd2 {[%clk 0:00:58]}  Ng6 {[%clk 0:01:52]} 18. Nf3 {[%clk 0:00:45]}  Bg4 {[%clk 0:01:50]} 19. Qd4 {[%clk 0:00:38]}  Bf5 {[%clk 0:01:09]} 20. h5 {[%clk 0:00:29]}  Nf4 {[%clk 0:01:08]} 21. Re5 {[%clk 0:00:30]}  Ne6 {[%clk 0:00:57]} 22. Qd2 {[%clk 0:00:15]}  Bg4 {[%clk 0:00:56]} 23. Rae1 {[%clk 0:00:15]}  Rad8 {[%clk 0:00:45]} 24. Nd4 {[%clk 0:00:13]}  Bxh5 {[%clk 0:00:36]} 25. Nxd5 {[%clk 0:00:12]}  Nxd5 {[%clk 0:00:27]} 26. Rxd5 {[%clk 0:00:12]}  Qb6 {[%clk 0:00:24]} 27. Ree5 {[%clk 0:00:06]}  Nxd4 {[%clk 0:00:20]} 28. Rxd8 {[%clk 0:00:03]}  Rxd8 {[%clk 0:00:20]} 29. c3 {[%clk 0:00:02]}  Ne6 {[%clk 0:00:14]} 30. Qe1 {[%clk 0:00:01]}  Rd1 {[%clk 0:00:14]} 31. Kh2 {[%clk 0:00:01]}  Rxe1 {[%clk 0:00:14]} 0-1


[Site "https://www.chess.com"]